bitfinex-derivatives/quotes_ETHF0:USTF0_20260305
["timestamp","ask_amount","ask_price","bid_price","bid_amount"]
[1772693545215,6.338,2130.8,2130.0,0.69142336]
[1772693545520,6.338,2130.8,2130.1,1.29301868]
[1772693545812,6.338,2130.8,2130.2,0.69156405]
[1772693546018,16.099,2130.9,2130.3,1.2928936]
[1772693546215,6.338,2130.9,2130.5,0.60145463]
[1772693546416,6.338,2130.9,2129.9,0.60145463]
[1772693546610,6.338,2130.9,2130.1,0.60145463]
[1772693546812,6.338,2130.9,2130.2,0.69129568]
[1772693547019,6.338,2130.9,2129.9,0.60150814]
[1772693547316,6.338,2130.9,2129.7,5.87135532]
[1772693547317,6.338,2130.9,2130.1,0.60150814]
[1772693547517,6.338,2130.9,2130.2,1.29291036]
[1772693547718,6.338,2130.9,2130.2,0.60150814]
[1772693548220,6.338,2130.9,2129.9,0.60152875]
[1772693548422,6.338,2130.9,2130.0,0.65662245]
[1772693548720,6.338,2130.9,2130.1,0.65662245]
[1772693548922,6.338,2130.9,2129.9,0.60152875]
[1772693549122,6.338,2130.9,2130.0,0.65662225]
[1772693549316,6.338,2130.9,2129.9,0.60152875]
[1772693549317,6.338,2130.9,2130.1,7.38029524]
[1772693549621,6.338,2130.9,2129.9,0.60152875]
[1772693549826,2.61559689,2131.0,2130.0,7.37706221]
[1772693550016,2.61559689,2131.0,2130.1,7.37706221]
[1772693550221,9.749,2130.9,2130.0,0.59997765]
[1772693550420,9.749,2130.8,2130.1,7.3165381]
[1772693550622,9.748,2130.7,2130.0,0.59997765]
[1772693550825,9.748,2130.6,2130.2,0.59773129]
[1772693551018,9.747,2130.5,2130.2,0.59773129]
[1772693551219,9.747,2130.5,2129.6,0.59773129]
[1772693551422,9.747,2130.5,2129.8,0.59773129]
[1772693551624,9.747,2130.5,2130.0,0.59773129]
[1772693551822,9.747,2130.5,2130.1,7.87614112]
[1772693552124,9.747,2130.5,2130.1,0.59773129]
[1772693554820,9.747,2130.5,2129.6,0.5981037]
[1772693555021,9.747,2130.5,2129.8,0.5981037]
[1772693555324,9.747,2130.5,2130.0,0.5981037]
[1772693555525,9.747,2130.5,2130.1,7.21652578]
[1772693555720,9.747,2130.5,2130.0,0.5981037]
[1772693555925,9.747,2130.5,2130.1,7.21626827]
[1772693556121,9.747,2130.5,2130.0,0.5981037]
[1772693556320,9.747,2130.5,2130.1,7.21690618]
[1772693556528,9.747,2130.5,2129.6,0.5981037]
[1772693556728,9.747,2130.5,2129.8,0.59817558]
[1772693556926,9.747,2130.5,2129.9,7.8154078]
[1772693557129,9.747,2130.5,2130.0,7.8154078]
[1772693557429,9.747,2130.5,2130.1,1.25113728]
[1772693557628,9.747,2130.5,2129.6,0.59817558]
[1772693557827,9.747,2130.5,2129.8,0.59817558]
[1772693558027,9.747,2130.5,2129.9,7.79676296]
[1772693558325,9.747,2130.5,2130.0,7.19858738]
[1772693558629,9.747,2130.5,2129.7,0.59817558]
[1772693558827,9.747,2130.5,2129.8,7.20211063]
[1772693559024,9.747,2130.5,2129.9,7.20211063]
[1772693559231,9.747,2130.5,2130.0,7.20211063]
[1772693559424,9.747,2130.5,2129.7,0.59817558]
[1772693559725,12.36259689,2130.5,2129.4,0.00397599]
[1772693560527,9.709,2130.4,2129.4,0.60204876]
[1772693560727,9.708,2130.3,2129.4,0.60204876]
[1772693561225,9.708,2130.3,2129.4,0.00397599]
[1772693562230,9.708,2130.3,2129.1,0.5985242]
[1772693563230,9.708,2130.3,2129.1,0.60462067]
[1772693565636,8.25141267,2131.0,2129.1,0.60462067]
[1772693565637,9.685,2130.2,2129.1,0.60462067]
[1772693565833,9.684,2130.1,2129.1,0.60462067]
[1772693566034,9.68838778,2130.1,2129.1,0.60462067]
[1772693572742,3.01087633,2130.0,2129.1,0.00609647]
[1772693572939,6.5482279,2130.0,2129.1,0.00609647]
[1772693573442,3.93263101,2129.9,2129.1,0.00609647]
[1772693573841,3.93263101,2129.9,2129.1,0.60970381]
[1772693574346,3.93263101,2130.0,2129.1,0.60970381]
[1772693575245,13.62101879,2130.1,2129.1,0.60970381]
[1772693579548,0.00438778,2130.1,2129.1,0.60970381]
[1772693579746,9.646,2130.0,2129.1,0.60970381]
[1772693584951,3.93263101,2129.9,2129.1,0.00609647]
[1772693585256,3.93263101,2129.7,2128.3,0.60458048]
[1772693585456,3.93263101,2129.6,2128.3,0.60458048]
[1772693586153,3.93263101,2129.5,2128.3,0.60458048]
[1772693586354,9.641,2129.4,2128.3,0.60831214]
[1772693587850,13.57363101,2129.4,2128.3,0.60831214]
[1772693589856,9.644,2129.3,2128.3,0.60831214]
[1772693590452,5.31838666,2129.2,2128.3,0.60831214]
[1772693593059,9.644,2129.3,2128.5,0.54677287]
[1772693593453,9.649,2129.7,2128.5,0.54677287]
[1772693593656,10.23127514,2129.7,2128.5,0.54677287]
[1772693593953,0.58227514,2129.6,2128.5,0.54677287]
[1772693597764,0.58227514,2129.5,2128.5,0.54677287]
[1772693598161,0.58227514,2129.4,2128.5,0.54677287]
[1772693598560,0.58227514,2129.3,2128.5,0.54677287]
[1772693598763,10.20616815,2129.2,2128.5,0.54677287]
[1772693602364,0.55716815,2129.1,2128.5,0.54677287]
[1772693604569,0.55716815,2129.1,2128.4,0.55473318]
[1772693604972,5.5435057,2129.0,2128.4,0.55473318]
[1772693605469,0.55716815,2129.1,2128.4,0.55473318]
[1772693605671,5.54353404,2129.0,2128.4,0.55473318]
[1772693606171,0.55716815,2129.1,2128.4,0.55473318]
[1772693606364,5.54364775,2129.0,2128.4,0.55473318]
[1772693607672,10.18760422,2129.2,2128.4,0.55473318]
[1772693607965,5.54590026,2129.1,2128.4,0.55473318]
[1772693609068,10.18760422,2129.2,2128.4,0.55473318]
[1772693611168,0.53860422,2129.1,2128.4,0.55473318]
[1772693613674,0.53860422,2129.1,2128.5,0.54513029]
[1772693618778,9.649,2129.2,2128.5,0.54513029]
[1772693618981,10.18760422,2129.2,2128.5,0.54513029]
[1772693619180,0.53860422,2129.1,2128.5,0.54513029]
[1772693619583,9.644,2129.5,2128.7,0.54513029]
[1772693619783,10.18260422,2129.5,2128.7,0.54513029]
[1772693621984,9.644,2129.5,2128.7,0.54513029]
[1772693622185,9.644,2129.5,2128.8,0.54513029]
[1772693623179,0.53860422,2130.0,2129.2,0.54513029]
[1772693623380,0.00438778,2130.1,2129.4,0.54513029]
[1772693623589,9.635,2130.3,2129.3,1.82311879]
[1772693623590,9.635,2130.3,2129.6,0.54513029]
[1772693624585,9.6383022,2130.3,2129.6,0.54513029]
[1772693625183,0.0033022,2130.3,2129.6,0.54513029]
[1772693625485,0.53860422,2130.9,2129.8,0.54513029]
[1772693626384,0.54196293,2130.9,2129.8,0.55107316]
[1772693627083,0.54196293,2130.9,2129.9,0.23471]
[1772693627286,0.54196293,2130.9,2130.0,0.54513029]
[1772693631593,0.54196293,2130.9,2129.8,0.59639988]
[1772693633293,0.54196293,2130.9,2129.8,0.00594287]
[1772693633493,0.58219419,2130.7,2129.8,0.00594287]
[1772693634800,0.58219419,2130.7,2129.4,0.59045701]
[1772693635501,0.58219419,2130.6,2129.6,0.59045701]
[1772693635797,0.58219419,2130.6,2129.6,0.59424143]
[1772693639489,0.58219419,2130.4,2129.6,0.00378442]
[1772693639696,0.58219419,2130.4,2129.6,0.59424143]
[1772693641201,6.55515376,2130.9,2129.6,0.59424143]
[1772693641202,0.58219419,2130.3,2129.6,0.59424143]
[1772693641700,0.58219419,2130.3,2129.6,0.00378442]
[1772693642301,0.58219419,2130.3,2129.2,0.59045701]
[1772693643303,0.58219419,2130.3,2129.2,0.004948]
[1772693643799,0.58219419,2130.3,2129.2,0.59540501]
[1772693646202,0.58219419,2130.1,2129.2,0.59540501]
[1772693648503,3.20135823,2130.1,2129.2,0.004948]
[1772693648703,0.5818765,2130.0,2129.2,0.004948]
[1772693649007,0.5818765,2129.8,2129.2,0.004948]
[1772693649407,0.5818765,2129.8,2129.2,0.59540501]
[1772693649813,10.1778765,2129.8,2129.2,0.59540501]
[1772693650417,9.596,2129.8,2129.2,0.59540501]
[1772693650615,0.5818765,2129.7,2129.2,0.59540501]
[1772693650913,0.58095118,2129.6,2129.0,0.59045701]
[1772693651812,2.16900346,2129.3,2128.9,0.59045701]
[1772693652016,0.00339066,2129.3,2129.0,0.59045701]
[1772693653414,0.00339066,2129.3,2128.9,0.00514364]
[1772693653614,0.00339066,2129.3,2129.0,0.02978486]
[1772693654414,0.58558485,2129.3,2129.0,0.02978486]
[1772693654615,0.00339066,2129.3,2128.9,0.00514364]
[1772693654816,0.59683258,2129.6,2128.9,0.00514364]
[1772693655817,0.60148709,2129.6,2128.9,0.00514364]
[1772693659119,0.60148709,2129.6,2128.5,1.887]
[1772693659120,0.60148709,2129.6,2128.4,2.12187]
[1772693659323,0.60148709,2129.6,2128.0,1.887]
[1772693659917,0.5962199,2129.4,2128.0,1.887]
[1772693660221,0.5962199,2129.4,2128.0,1.89060895]
[1772693660814,0.5962199,2129.4,2128.1,0.23491]
[1772693662613,0.5962199,2129.4,2128.2,0.00080383]
[1772693663418,0.5955536,2129.2,2128.1,0.00080383]
[1772693664723,0.59813619,2129.0,2128.1,0.00080383]
[1772693664924,10.17913619,2129.0,2128.1,0.00080383]
[1772693665125,0.59813619,2128.9,2128.1,0.00080383]
[1772693667920,0.59339782,2129.2,2128.1,0.00080383]
[1772693668321,0.59339782,2129.2,2128.3,0.0069758]
[1772693669822,0.5928201,2129.4,2128.5,0.00813125]
[1772693670626,3.92834642,2129.6,2128.7,0.00813125]
[1772693670627,0.59747461,2129.6,2128.7,0.00813125]
[1772693670819,0.59747461,2129.6,2128.8,0.00433092]
[1772693675526,5.98106701,2129.5,2128.6,0.23486]
[1772693675831,0.59914093,2129.4,2128.6,0.23486]
[1772693676926,0.59914093,2129.4,2128.3,1.887]
[1772693677626,0.60073062,2129.2,2128.1,2.1219]
[1772693677830,0.60073062,2129.2,2128.1,0.2349]
[1772693679032,0.59919487,2129.4,2128.5,0.23486]
[1772693679335,6.58375729,2129.3,2128.5,0.23486]
[1772693679535,0.59919487,2129.3,2128.5,0.23486]
[1772693680932,0.59893368,2129.1,2128.0,0.23851895]
[1772693685137,0.59893368,2129.1,2128.1,1.887]
[1772693686237,0.59847626,2128.9,2128.1,1.887]
[1772693688840,0.59847626,2128.9,2128.0,0.23851895]
[1772693689836,0.59655198,2129.1,2128.4,0.23487]
[1772693691043,0.596036,2129.5,2128.4,0.23487]
[1772693691232,0.596036,2129.3,2128.4,0.23487]
[1772693696737,0.60686751,2129.1,2128.4,0.23487]
[1772693697151,0.60686751,2129.1,2128.1,1.887]
[1772693697451,0.60686751,2129.1,2128.0,0.00360895]
[1772693697747,0.60686751,2129.1,2128.1,0.23491]
[1772693700445,0.60686751,2129.1,2128.5,0.23486]
[1772693700753,0.61027934,2129.4,2128.5,0.23486]
[1772693700953,6.53920423,2129.3,2128.7,0.23484]
[1772693701144,0.61021212,2129.5,2128.7,2.12184]
[1772693703746,0.00465451,2129.6,2128.4,6.155]
[1772693703747,0.61762898,2129.6,2128.9,0.23482]
[1772693715760,0.61762898,2129.6,2129.0,1.887]
[1772693717655,0.59192006,2130.0,2129.2,0.42785917]
[1772693717860,0.59192006,2129.8,2129.3,0.44444105]
[1772693718657,0.59574751,2129.8,2129.3,0.44444105]
[1772693719854,0.59574751,2129.8,2129.2,1.887]
[1772693720265,0.59574751,2129.8,2129.3,0.4410186]
[1772693720864,0.59574751,2129.8,2129.2,1.887]
[1772693721264,0.59574751,2129.8,2129.2,2.32794774]
[1772693721466,0.59574751,2129.8,2129.3,0.44094774]
[1772693721660,0.59574751,2129.8,2129.2,1.887]
[1772693722161,0.59574751,2129.8,2129.2,1.29075176]
[1772693722657,0.55938961,2129.6,2128.9,0.44094774]
[1772693723163,0.55938961,2129.6,2128.7,0.55665819]
[1772693728172,0.55719652,2129.4,2128.7,0.55665819]
[1772693729573,0.55719652,2129.4,2128.8,0.79188612]
[1772693729774,0.55719652,2129.4,2128.9,0.55705612]
[1772693730578,0.55719652,2129.4,2128.8,0.79188612]
[1772693731371,0.55719652,2129.4,2128.9,0.55705612]
[1772693733783,0.55719652,2129.4,2128.8,0.23483]
[1772693734380,0.55719652,2129.4,2128.9,0.55705612]
[1772693737886,0.55719652,2129.4,2128.8,0.79188612]
[1772693738384,0.55719652,2129.4,2128.8,0.23483]
[1772693738584,0.55719652,2129.2,2128.6,0.55705612]
[1772693738886,0.27888408,2129.4,2128.8,0.55705612]
[1772693739483,5.81937459,2129.5,2128.8,0.55705612]
[1772693739484,0.27888408,2129.3,2128.8,0.55705612]
[1772693740086,6.09825867,2129.6,2129.0,0.55705612]
[1772693740281,5.81937459,2129.5,2129.0,0.55705612]
[1772693740488,0.27888408,2129.6,2129.0,0.55705612]
[1772693743089,0.27888408,2129.6,2128.8,0.55705612]
[1772693743293,0.28898095,2129.5,2128.8,0.55705612]
[1772693743594,0.28898095,2129.4,2128.8,0.55705612]
[1772693744195,0.28898095,2129.4,2128.5,0.55705612]
[1772693744997,0.28898095,2129.4,2128.7,0.55705612]
[1772693745297,0.28898095,2129.4,2128.9,0.55705612]
[1772693745491,6.04933591,2129.4,2128.9,0.55705612]
[1772693745692,0.28898095,2129.4,2128.9,0.55705612]
[1772693746188,0.29207451,2129.6,2128.9,0.55705612]
[1772693749699,6.06211041,2129.7,2129.1,0.57454567]
[1772693749997,5.77030558,2129.6,2129.1,0.57454567]
[1772693750304,3.19482,2129.5,2129.1,0.57454567]
[1772693750493,4.50530111,2129.8,2129.1,0.57454567]
[1772693750903,0.5816092,2129.8,2129.1,0.57454567]
[1772693751203,0.5816092,2129.8,2129.3,0.57454567]
[1772693751402,0.00382745,2129.8,2129.3,0.57454567]
[1772693752301,0.5816092,2129.8,2129.3,0.57454567]
[1772693755305,0.57778175,2130.2,2129.5,0.57454567]
[1772693756107,0.48834478,2130.5,2129.7,0.57454567]
[1772693756401,0.49397229,2130.5,2129.9,0.57454567]
[1772693758498,0.48478326,2130.4,2129.9,0.57454567]
[1772693760610,0.48133223,2130.2,2129.8,0.57454567]
[1772693760810,0.48114388,2130.0,2129.5,0.57454567]
[1772693761611,0.48114388,2129.8,2129.4,0.57454567]
[1772693761909,0.48114388,2129.8,2129.4,0.57902607]
[1772693762302,1.59257773,2130.5,2129.4,0.57902607]
[1772693762303,0.48114388,2130.0,2129.4,0.57902607]
[1772693764209,0.47815077,2129.8,2129.4,0.0044804]
[1772693765305,0.47815077,2129.8,2129.4,0.57902607]
[1772693766702,0.47815077,2129.8,2129.4,0.0044804]
[1772693767505,0.47815077,2129.8,2129.3,0.80931567]
[1772693768510,0.47815077,2129.8,2129.3,0.81521443]
[1772693769410,0.47815077,2129.8,2129.4,0.57454567]
[1772693770608,0.47815077,2129.8,2129.3,0.81521443]
[1772693770813,0.57778175,2129.4,2129.0,0.57454567]
[1772693771614,0.57778175,2129.6,2129.0,0.57454567]
[1772693771913,0.57778175,2129.6,2129.0,0.57824954]
[1772693779218,0.54652554,2129.5,2129.0,0.00370387]
[1772693779418,0.54652554,2129.5,2128.9,0.59536959]
[1772693779419,0.54652554,2129.3,2128.9,0.59536959]
[1772693780118,0.54652554,2129.1,2128.8,0.83019959]
[1772693780413,0.54652554,2129.1,2128.5,0.59536959]
[1772693781012,0.54652554,2129.1,2128.7,0.59536959]
[1772693781515,0.54652554,2129.7,2128.7,0.60004086]
[1772693781711,0.54652554,2129.5,2128.8,0.23483]
[1772693781917,0.54652554,2129.5,2128.9,0.59536959]
[1772693783219,0.54652554,2129.5,2128.8,0.23483]
[1772693783921,0.54652554,2129.5,2128.8,0.83019959]
[1772693784315,0.54652554,2129.5,2128.8,0.23483]
[1772693784720,0.54652554,2129.5,2128.7,0.00467127]
[1772693785211,0.54652554,2129.5,2128.7,0.60004086]
[1772693792231,0.54652554,2129.5,2128.7,0.00467127]
[1772693792739,0.53946886,2129.3,2128.4,0.56933931]
[1772693793435,0.53946886,2129.2,2128.3,0.23488]
[1772693793636,0.53946886,2129.1,2128.3,0.23488]
[1772693793837,0.53946886,2129.1,2128.4,0.56933931]
[1772693794433,5.71473147,2129.0,2128.4,0.56933931]
[1772693794735,0.53946886,2128.9,2128.4,0.56933931]
[1772693795339,0.53946886,2128.9,2128.3,0.57278716]
[1772693798537,0.53946886,2128.9,2128.3,0.00344785]
[1772693799942,0.53946886,2128.9,2128.3,0.57278716]
[1772693800537,2.12846918,2128.9,2128.3,0.57278716]
[1772693800736,0.53946886,2128.8,2128.3,0.57278716]
[1772693801240,0.54360123,2129.0,2128.5,0.56933931]
[1772693803333,0.53946886,2128.9,2128.4,0.23488]
[1772693804036,0.53946886,2128.7,2128.3,0.00344785]
[1772693804345,0.53946886,2128.7,2128.1,0.56933931]
[1772693804843,0.53946886,2128.7,2128.3,0.56933931]
[1772693805346,0.53946886,2128.7,2128.3,0.57477757]
[1772693805547,0.53946886,2128.8,2128.3,0.57477757]
[1772693805846,0.54360123,2129.0,2128.3,0.57477757]
[1772693809647,0.57680486,2128.9,2128.3,0.57477757]
[1772693809843,0.57680486,2128.7,2128.2,0.78776319]
[1772693810042,0.57680486,2128.7,2128.3,0.55286319]
[1772693810841,0.57680486,2128.7,2128.2,0.78776319]
[1772693811044,0.57680486,2128.7,2128.3,0.00558932]
[1772693811242,0.57680486,2128.7,2128.2,0.78776319]
[1772693812149,0.57680486,2128.7,2128.2,0.79255275]
[1772693813950,0.57680486,2128.5,2128.0,0.55286319]
[1772693814642,0.57680486,2128.7,2128.0,0.55286319]
[1772693814847,0.57680486,2128.7,2128.3,0.55286319]
[1772693817348,0.57680486,2128.7,2128.2,0.2349]
[1772693818253,0.57680486,2128.7,2128.1,0.55286319]
[1772693819254,0.57680486,2128.7,2128.2,0.2349]
[1772693821847,0.57680486,2128.5,2128.0,0.00609019]
[1772693822052,0.57680486,2128.5,2127.9,0.55286319]
[1772693822854,0.57680486,2128.3,2127.8,0.55286319]
[1772693823054,0.57680486,2128.3,2127.8,0.55749977]
[1772693823451,0.57680486,2128.3,2127.8,0.00463658]
[1772693823656,0.57680486,2128.5,2128.0,0.55286319]
[1772693824757,0.57680486,2128.5,2128.0,0.55893107]
[1772693826263,0.57680486,2128.5,2128.0,0.00606788]
[1772693826958,0.57680486,2128.5,2127.6,0.55286319]
[1772693826959,0.57680486,2128.4,2127.6,0.55286319]
[1772693827156,0.57680486,2128.9,2128.0,0.55286319]
[1772693827354,0.57680486,2128.9,2128.2,0.55286319]
[1772693827555,0.57680486,2128.7,2127.7,0.55286319]
[1772693827760,0.57680486,2128.7,2127.9,0.55286319]
[1772693827962,0.57680486,2128.7,2127.9,0.5586411]
[1772693828465,0.57680486,2128.7,2128.1,0.55286319]
[1772693828657,0.57680486,2128.9,2128.3,0.55286319]
[1772693829461,0.09784486,2128.9,2128.3,0.55286319]
[1772693829663,0.57680486,2129.4,2128.5,0.55286319]
[1772693830263,0.57680486,2129.4,2128.6,0.78772319]
[1772693830466,0.57680486,2129.4,2128.7,0.55286319]
[1772693830665,0.58055736,2129.4,2128.7,0.55286319]
[1772693831258,0.58055736,2129.4,2128.5,0.55286319]
[1772693831661,0.57680486,2129.2,2128.5,0.55286319]
[1772693831860,0.57680486,2129.1,2128.2,0.55286319]
[1772693834065,0.57680486,2129.1,2128.1,0.78777319]
[1772693834366,0.57680486,2129.1,2128.2,0.55286319]
[1772693835368,0.57680486,2129.1,2128.1,0.78777319]
[1772693835763,0.57680486,2128.9,2128.1,0.23491]
[1772693836868,0.57680486,2128.9,2127.9,0.5586411]
[1772693837169,13.43069191,2129.3,2127.9,0.00577791]
[1772693837170,0.57680486,2128.7,2127.9,0.00577791]
[1772693837469,0.57680486,2128.6,2127.9,0.5586411]
[1772693838768,0.53939444,2128.9,2128.1,0.58409417]
[1772693845660,0.53887165,2129.3,2128.5,0.58409417]
[1772693845863,3.92744441,2129.4,2128.5,0.58409417]
[1772693845864,6.19485662,2129.2,2128.5,0.58409417]
[1772693846060,0.53887165,2129.2,2128.5,0.58409417]
[1772693852668,0.54645872,2129.4,2128.7,0.58558777]
[1772693852865,5.65337961,2129.3,2128.7,0.58558777]
[1772693854173,6.19608583,2129.3,2128.7,0.58558777]
[1772693854374,0.54270622,2129.3,2128.7,0.58558777]
[1772693855975,0.54270622,2129.3,2128.6,0.82044777]
[1772693856277,0.54270622,2129.3,2128.7,0.58558777]
[1772693857774,0.0037525,2129.4,2128.7,0.58558777]
[1772693857975,0.54645872,2129.4,2128.7,0.58558777]
[1772693858166,5.65799365,2129.3,2128.7,0.58558777]
[1772693860370,6.20069987,2129.3,2128.7,0.58558777]
[1772693860575,0.54270622,2129.3,2128.7,0.58558777]
[1772693865075,0.54270622,2129.3,2128.6,0.23486]
[1772693865076,0.0037525,2129.4,2128.9,0.58558777]
[1772693865283,0.54270622,2129.8,2129.1,0.58558777]
[1772693865583,0.54270622,2129.9,2129.3,0.58558777]
[1772693865776,0.98438945,2129.8,2129.3,0.58558777]
[1772693865976,0.54270622,2129.8,2129.3,0.58558777]
[1772693866177,0.54866685,2129.8,2129.3,0.58558777]
[1772693874491,0.54866685,2129.8,2128.8,0.56828161]
[1772693875694,0.54866685,2129.8,2129.0,0.56828161]
[1772693877294,0.54189498,2129.6,2129.0,0.56828161]
[1772693880597,2.13012197,2129.6,2129.0,0.56828161]
[1772693880997,0.54189498,2129.5,2129.0,0.56828161]
[1772693881897,0.54189498,2129.1,2128.5,0.56828161]
[1772693882498,0.54189498,2129.3,2128.7,0.56828161]
[1772693884104,9.604,2129.5,2128.9,0.56828161]
[1772693886105,10.14589498,2129.5,2128.9,0.56828161]
[1772693886306,0.54189498,2129.4,2128.9,0.56828161]
[1772693887806,10.14589498,2129.5,2129.1,0.56828161]
[1772693888501,0.54189498,2129.7,2129.1,0.56828161]
[1772693888708,6.3e-07,2129.8,2129.3,0.56828161]
[1772693889102,5.89886223,2130.4,2128.8,1.58822699]
[1772693889103,0.54189498,2130.3,2130.0,0.56828161]
[1772693889306,0.54189498,2130.6,2130.0,0.56828161]
[1772693889506,0.44164674,2130.5,2130.0,0.56828161]
[1772693889704,0.54189498,2130.5,2129.8,0.80300161]
[1772693889899,0.54189498,2130.3,2129.9,0.56828161]
[1772693890100,0.54189498,2130.1,2129.8,0.23902993]
[1772693890406,0.54189498,2130.4,2129.8,0.80731154]
[1772693890610,1.59185871,2130.5,2129.9,0.56828161]
[1772693890907,2.13375369,2130.5,2129.9,0.56828161]
[1772693891310,0.54189498,2130.4,2129.9,0.56828161]
[1772693893408,0.54189498,2130.2,2129.8,0.00430993]
[1772693893602,0.54189498,2130.2,2129.7,0.41238361]
[1772693893800,0.54189498,2130.0,2129.4,0.56828161]
[1772693894003,2.13012197,2129.7,2129.0,0.56828161]
[1772693894212,0.54189498,2129.7,2129.0,0.56828161]
[1772693894608,0.54189498,2129.7,2129.0,0.57233921]
[1772693897108,0.54189498,2129.5,2129.0,0.57233921]
[1772693898207,0.54189498,2129.5,2129.0,0.0040576]
[1772693898716,0.54189498,2129.5,2128.6,3.86914079]
[1772693898717,0.55166424,2129.1,2128.6,0.54815902]
[1772693899602,0.55166424,2129.1,2128.6,0.55359965]
[1772693900712,0.55166424,2129.5,2128.6,0.55359965]
[1772693911715,0.55166424,2129.5,2128.8,0.55741524]
[1772693920725,0.54273252,2129.4,2128.8,0.55741524]
[1772693923230,2.13136439,2129.4,2128.6,0.56285587]
[1772693923424,0.54273252,2129.3,2128.7,0.55741524]
[1772693923727,0.54273252,2128.9,2128.5,0.55741524]
[1772693924526,0.54273252,2128.9,2128.4,3.86914079]
[1772693924725,0.54273252,2128.7,2128.4,0.00581257]
[1772693924920,0.54273252,2128.7,2128.2,4.42655603]
[1772693925125,0.54273252,2128.7,2128.3,0.55741524]
[1772693925430,0.54273252,2128.7,2128.2,4.42655603]
[1772693925828,0.54273252,2128.7,2128.2,4.43107918]
[1772693926024,1.58863187,2128.6,2128.2,3.87366394]
[1772693926230,0.54273252,2128.5,2128.2,0.00452315]
[1772693926432,0.54273252,2128.5,2128.2,0.56193839]
[1772693928724,0.54273252,2128.5,2128.2,0.00452315]
[1772693929524,0.54273252,2128.5,2128.2,0.52243274]
[1772693930134,0.52383907,2128.7,2128.2,0.52243274]
[1772693931633,1.58863187,2128.4,2127.9,3.86914079]
[1772693931837,0.52383907,2128.3,2127.9,0.51790959]
[1772693932636,0.52383907,2128.3,2127.9,0.52226651]
[1772693932836,0.52383907,2128.3,2127.9,0.00435692]
[1772693933238,0.52383907,2128.3,2127.9,0.52226651]
[1772693933535,0.52383907,2128.3,2127.7,0.51790959]
[1772693934132,0.52383907,2128.3,2127.6,0.51790959]
[1772693934330,0.52383907,2128.3,2127.6,0.52232623]
[1772693934841,0.52383907,2128.1,2127.6,0.52232623]
[1772693937347,0.52383907,2128.7,2127.8,0.51790959]
[1772693938040,0.52383907,2128.5,2127.8,0.51790959]
[1772693938641,0.52383907,2128.5,2128.0,0.51790959]
[1772693940745,0.52383907,2128.8,2128.0,0.51790959]
[1772693941346,0.52383907,2128.8,2127.9,0.51790959]
[1772693942848,0.52383907,2128.8,2127.6,0.52232623]
[1772693944654,0.52383907,2128.8,2127.6,0.00441664]
[1772693945350,0.52383907,2128.8,2127.6,0.52232623]
[1772693947353,0.52383907,2128.6,2127.6,0.52232623]
[1772693947547,0.52383907,2128.4,2127.6,0.52232623]
[1772693948651,0.52383907,2128.4,2127.6,0.00441664]
[1772693948847,0.52383907,2128.4,2127.3,0.51790959]
[1772693951248,0.52383907,2128.2,2127.3,0.51790959]
[1772693952355,0.52383907,2128.2,2127.3,0.75290959]
[1772693952550,0.52383907,2128.2,2127.4,0.51790959]
[1772693953553,0.52383907,2128.5,2127.4,0.51790959]
[1772693953752,0.52383907,2128.5,2127.6,0.51790959]
[1772693954254,0.52383907,2128.5,2127.7,0.51790959]
[1772693956058,0.52383907,2128.7,2127.7,0.51790959]
[1772693956458,0.52978585,2128.9,2127.9,0.51790959]
[1772693957260,0.52978585,2128.9,2128.0,0.51790959]
[1772693958264,0.52978585,2128.9,2128.1,0.51790959]
[1772693958858,0.59291142,2129.2,2128.3,0.54646983]
[1772693960066,0.59813035,2129.2,2128.3,0.5500934]
[1772693964365,0.59813035,2129.2,2128.3,0.00362357]
[1772693964366,0.59291142,2129.0,2128.3,0.00362357]
[1772693964562,0.59291142,2128.8,2128.0,0.54646983]
[1772693964762,0.59291142,2128.8,2127.8,0.54646983]
[1772693965462,0.59291142,2128.8,2127.6,0.54646983]
[1772693965664,0.59291142,2128.8,2127.6,0.54879304]
[1772693972372,0.59262044,2128.6,2127.6,0.54879304]
[1772693972667,0.59262044,2128.7,2127.7,0.59408475]
[1772693978479,0.59262044,2128.7,2127.6,0.59640796]
[1772693982171,0.39297818,2128.6,2127.6,0.59640796]
[1772693982372,0.59262044,2128.5,2127.6,0.59640796]
[1772693983677,10.15862044,2128.4,2127.6,0.59640796]
[1772693984178,0.59262044,2128.3,2127.6,0.59640796]
[1772693984771,0.59262044,2128.3,2127.6,0.00232321]
[1772693986680,0.59262044,2128.3,2127.6,0.59640796]
[1772693986880,9.569,2128.2,2127.6,0.59640796]
[1772693988277,0.59262044,2128.3,2127.6,0.59640796]
[1772693988478,0.59262044,2129.0,2128.2,0.59408475]
[1772693992381,0.00521893,2129.2,2128.2,0.59408475]
[1772693992382,0.59124916,2129.1,2128.2,0.59408475]
[1772693992687,0.00521893,2129.2,2128.4,0.59374229]
[1772693995289,0.59646809,2129.2,2128.4,0.59374229]
[1772693997691,0.39107883,2129.1,2128.1,0.59374229]
[1772693997887,0.59124916,2129.0,2128.1,0.59374229]
[1772693998291,0.59124916,2129.0,2128.3,0.59374229]
[1772693999592,0.59646809,2129.2,2128.3,0.59374229]
[1772694001397,0.59646809,2129.2,2128.5,0.59374229]
[1772694003096,0.00521893,2129.2,2128.5,0.59374229]
[1772694003795,0.59646809,2129.2,2128.5,0.59374229]
[1772694004497,0.00521893,2129.2,2128.5,0.59374229]
[1772694005092,0.00521893,2129.2,2128.6,0.23486]
[1772694005297,0.59646809,2129.2,2128.7,0.59374229]
[1772694005899,0.59124916,2129.3,2128.7,0.59374229]
[1772694006600,3.92369191,2129.7,2128.9,0.59374229]
[1772694006601,0.59124916,2129.7,2128.9,0.59374229]
[1772694006996,0.59572643,2129.7,2128.9,0.59374229]
[1772694009592,0.59124916,2129.5,2128.4,0.59374229]
[1772694011199,0.59124916,2129.3,2128.4,0.59374229]
[1772694011400,0.59124916,2129.1,2128.4,0.59374229]
[1772694013599,0.59124916,2129.1,2128.0,0.59374229]
[1772694014102,0.59124916,2129.1,2128.2,0.59374229]
[1772694014502,0.59124916,2129.1,2128.4,0.59374229]
[1772694014693,0.59124916,2129.6,2128.7,0.59374229]
[1772694015001,0.59572643,2129.7,2129.0,0.59374229]
[1772694015194,0.59572643,2129.7,2128.5,0.59374229]
[1772694016006,0.59124916,2129.6,2128.5,0.59374229]
[1772694016603,4.51494107,2129.6,2128.5,0.59374229]
[1772694016903,0.59124916,2129.5,2128.5,0.59374229]
[1772694017104,0.59124916,2129.3,2128.5,0.59374229]
[1772694018709,3.92369191,2129.4,2128.5,0.59374229]
[1772694019008,0.57706609,2129.5,2128.5,0.59374229]
[1772694020204,4.500758,2129.5,2128.5,0.59374229]
[1772694020400,0.57706609,2129.4,2128.5,0.59374229]
[1772694022008,4.500758,2129.5,2128.5,0.59374229]